[Event "26th Womens ECCC 2022"]
[Site "Mayrhofen"]
[Date "2022.10.06"]
[Round "4.24"]
[White "Manova, Ivana"]
[Black "Vidic, Teja"]
[Result "0-1"]
[ECO "C47"]
[WhiteElo "1876"]
[BlackElo "2126"]
[Annotator "TA"]
[PlyCount "126"]
[EventDate "2022.10.03"]
[EventType "team-tourn"]
[EventCountry "AUT"]
[SourceTitle "playchess.com"]
[Source "ChessBase"]
[SourceQuality "1"]
[TimeControl "40/5400+30:1800+30"]

{[%evp 17,126,7,2,0,0,0,1,10,9,10,10,10,12,13,13,17,5,0,14,4,20,16,7,0,0,0,0,0,0,0,0,0,0,0,7,5,32,27,117,117,117,118,118,116,107,-51,-41,-87,-60,-189,-112,-168,-178,-170,-166,-140,-68,-50,-48,-50,-46,-261,-155,-194,-160,-148,-160,-129,-147,-441,-394,-431,-327,-316,-273,-279,-166,-175,-157,-171,-170,-154,-82,-85,-8,-8,-8,-8,-8,-8,-8,-8,-8,-8,-8,-8,-8,-10793,-11151,-29938,-12661,-29950,-29953,-29946,-29950,-12839,-12833,-12818,-12799,-5064,-5064]} 1. e4 {[%emt 0:00:17] Mikhalevski,V} e5 {[%emt 0:00:00]} 2. Nf3 {[%emt 0:00:16]} Nc6 {[%emt 0:00:00]} 3. Nc3 {[%emt 0:00:35]} Nf6 {[%emt 0:00:01]} 4. d4 {[%emt 0:00:22]} exd4 {[%emt 0:00:05]} 5. Nxd4 {[%emt 0:00:08]} Bb4 {[%emt 0:00:10]} 6. Nxc6 {[%emt 0:00:31]} bxc6 {[%emt 0:00:05]} 7. Bd3 {[%emt 0:00:23]} O-O {[%emt 0:00:08]} 8. O-O {[%emt 0:01:24]} d5 {[%emt 0:00:56]} 9. exd5 {[%emt 0:03:46]} cxd5 {[%emt 0:00:11]} 10. h3 {[%emt 0:00:12] C47: Scotch Four Knights and Four Knights with 4 g3.} c6 {[%emt 0:01:30]} 11. Qf3 {[%emt 0:03:53]} Re8 {[%emt 0:03:55]} 12. Bg5 {[%emt 0:02:11] The position is equal.} h6 {[%emt 0:00:17] 12...Rb8 is not played anymore.} 13. Bxf6 {[%emt 0:01:35]} Qxf6 {[%emt 0:00:07]} 14. Qxf6 {[%emt 0:00:36]} gxf6 {[%emt 0:00:06]} 15. Ne2 {[%emt 0:07:30]} Rb8 {[%emt 0:06:32] has lost popularity (15...Bd7).} 16. Rad1 {[%emt 0:07:18]} a5 {[%emt 0:09:52]} 17. Ng3 {[%emt 0:08:32]} Bd6 {[%emt 0:03:16]} 18. b3 {[%emt 0:01:44]} Bb4 {[%emt 0:12:33] [#]} 19. c4 $146 {[%emt 0:09:36]} ({Predecessor:} 19. Nf5 Bxf5 20. Bxf5 Re5 21. Bd7 Rb6 22. Rd3 Re2 23. Bf5 Kf8 24. Re3 Rxe3 25. fxe3 {½-½ (52) Georgiev,V (2515)-Jussupow,A (2665) Linares 1997 CBM 058 [Mikhalevski,V]}) 19... d4 {[%emt 0:03:41]} 20. Bf5 {[%emt 0:07:54]} c5 {[%emt 0:03:31]} 21. Bxc8 {[%emt 0:05:12]} Rbxc8 {[%emt 0:02:36]} 22. Nh5 {[%emt 0:08:39]} Re2 {[%emt 0:03:04]} 23. Nxf6+ {[%emt 0:01:13]} Kg7 {[%emt 0:00:57]} 24. Nh5+ {[%emt 0:00:11]} Kf8 $1 {[%emt 0:01:25]} 25. a4 {[%emt 0:01:14]} Bc3 {[%emt 0:12:11]} 26. Rb1 {[%emt 0:06:16]} Rb8 {[%emt 0:02:10]} 27. Nf4 {[%emt 0:20:20] Prevents Re6.} Rb2 {[%emt 0:00:41]} (27... Re7 $11 {keeps the balance.}) 28. Rxb2 $16 {[%emt 0:01:32]} Bxb2 {[%emt 0:00:06][%mdl 4096] Endgame KRB-KRN} 29. Rb1 {[%emt 0:00:49]} Rxb3 {[%emt 0:14:38]} 30. Kf1 {[%emt 0:00:06]} d3 {[%emt 0:00:05][%cal Ob3a3]} 31. Nd5 $2 {[%emt 0:01:03]} (31. g3 $16) 31... Ra3 $1 $15 {[%emt 0:01:12][%cal Oa3a4]} 32. f4 {[%emt 0:00:38]} (32. Ke1 $15 {was preferrable.} Bd4 33. Kd2) 32... Bd4 {[%emt 0:01:21]} 33. f5 {[%emt 0:00:25]} (33. Ke1 $15) 33... Ra2 {[%emt 0:03:27]} ({Black should try} 33... Rxa4 $19 {...Ra2 is the strong threat.} 34. Ke1 Rxc4) 34. Rd1 {[%emt 0:00:33]} (34. Ke1 $17) 34... Rxa4 $19 {[%emt 0:01:48]} 35. Rxd3 {[%emt 0:00:20]} Rxc4 {[%emt 0:00:06]} 36. Ra3 {[%emt 0:00:35]} Rc2 {[%emt 0:02:45]} (36... Rc1+ $17 37. Ke2 Rc2+ 38. Kf3 Rf2+ 39. Ke4 Re2+ 40. Kf4 Rf2+ 41. Ke4 Rxg2 42. Rxa5 Re2+ 43. Kf4 Kg7) 37. g4 $15 {[%emt 0:00:23]} Rf2+ {[%emt 0:03:14]} 38. Ke1 {[%emt 0:00:04]} Rh2 {[%emt 0:00:21]} 39. Nf4 $2 {[%emt 0:00:59]} ({Better is} 39. Rxa5 $15 Rxh3 40. f6) 39... Ke7 {[%emt 0:01:34]} (39... Bb2 $19 40. Ra4 Bc3+ 41. Kd1 Bb4) 40. Kd1 {[%emt 0:00:25]} Kd6 {[%emt 0:04:28]} 41. Rxa5 {[%emt 0:30:38]} Ke5 {[%emt 0:30:51] Black is more active.} 42. Nd3+ {[%emt 0:00:00]} Kd5 {[%emt 0:00:00]} 43. Ra6 $2 {[%emt 0:00:00][%mdl 8192]} (43. Ra4 $17 {was necessary.}) 43... Ke4 {[%emt 0:00:00]} 44. Ra3 {[%emt 0:00:00]} c4 {[%emt 0:00:00]} 45. Ne1 {[%emt 0:00:00]} c3 {[%emt 0:00:00]} 46. Ra4 {[%emt 0:00:00][%cal Oa4d4] Threatens to win with Rxd4+!} Rxh3 {[%emt 0:00:00]} (46... Rh1 $142 {Strongly threatening ...c2+.} 47. Ke2 Rxh3) 47. Nc2 $19 {[%emt 0:00:00]} Rh1+ {[%emt 0:00:00]} 48. Ke2 {[%emt 0:00:00]} Rh2+ {[%emt 0:00:00]} 49. Kd1 {[%emt 0:00:00] [#]} Rd2+ {[%emt 0:00:00]} (49... Ke5 $142 $1 50. Rxd4 Rxc2 $1 {[%mdl 512]}) 50. Kc1 $17 {[%emt 0:00:00]} f6 {[%emt 0:00:00]} ({Black should play} 50... Ke5 $17 {White must now prevent ...Bf2.} 51. Ne1 Ke4) 51. Nxd4 $11 {[%emt 0:00:00]} Rxd4 {[%emt 0:00:00] KR-KR} 52. Ra6 {[%emt 0:00:00]} h5 {[%emt 0:00:00]} 53. gxh5 {[%emt 0:00:00]} Kxf5 {[%emt 0:00:00]} 54. Kc2 {[%emt 0:00:00] Inhibits Rd3.} Rc4 {[%emt 0:02:36] next ...Kg5 is good for Black.} 55. Ra5+ $1 {[%emt 0:00:53]} Kg4 {[%emt 0:01:41]} 56. h6 {[%emt 0:00:15]} Rc7 {[%emt 0:00:48]} 57. Ra8 $2 {[%emt 0:02:22][%mdl 8192] [#]} (57. Ra1 $11) 57... Kg5 $1 $19 {[%emt 0:05:19]} 58. h7 {[%emt 0:05:00]} Rxh7 {[%emt 0:00:10] ( -> ...f5)} 59. Kxc3 {[%emt 0:00:07]} Rd7 {[%emt 0:00:14]} 60. Rg8+ {[%emt 0:00:43]} Kf4 {[%emt 0:00:14]} 61. Rf8 {[%emt 0:00:40]} f5 {[%emt 0:00:10] Black is clearly winning.} 62. Rf6 {[%emt 0:00:31]} Ke4 {[%emt 0:00:28]} 63. Re6+ {[%emt 0:00:32] [#]} Kf3 $1 {[%emt 0:00:04] Weighted Error Value: White=0.58/Black=0.22 (precise)} 0-1

[Event "26th Womens ECCC 2022"]
[Site "Mayrhofen"]
[Date "2022.10.06"]
[Round "4.25"]
[White "Eric, Jovana"]
[Black "Enkhtuul, Altan-Ulzii"]
[Result "1-0"]
[ECO "C11"]
[WhiteElo "2252"]
[BlackElo "2295"]
[Annotator "TA"]
[PlyCount "117"]
[EventDate "2022.10.03"]
[EventType "team-tourn"]
[EventCountry "AUT"]
[SourceTitle "playchess.com"]
[Source "ChessBase"]
[SourceQuality "1"]
[TimeControl "40/5400+30:1800+30"]

{[%evp 17,117,0,0,0,10,0,11,8,11,16,23,23,26,25,23,28,30,23,45,41,68,29,36,36,68,64,81,84,89,88,90,75,92,79,100,80,95,48,43,51,233,223,296,258,297,291,255,287,286,258,195,177,220,292,368,355,302,299,1082,1055,948,871,835,710,685,380,736,664,842,703,752,752,746,660,1020,1040,1660,1631,1781,1739,1936,1762,5177,3394,2402,2240,29982,29983,29983,29984,29984,29985,29985,29984,29984,29985,29985,29986,29986,29987,29986,29978]} 1. e4 {[%emt 0:00:04]} e6 {[%emt 0:00:36]} 2. d4 {[%emt 0:00:10]} d5 3. Nc3 {[%emt 0:00:14]} Nf6 {[%emt 0:01:14]} 4. e5 {[%emt 0:00:18]} Nfd7 {[%emt 0:00:04]} 5. f4 {[%emt 0:00:09]} c5 {[%emt 0:00:03]} 6. Nf3 {[%emt 0:00:04]} Nc6 {[%emt 0:00:04]} 7. Be3 {[%emt 0:00:06]} a6 {[%emt 0:00:28]} 8. Qd2 {[%emt 0:00:38]} b5 {[%emt 0:00:07]} 9. dxc5 {[%emt 0:01:03]} Bxc5 {[%emt 0:00:19]} 10. Bd3 {[%emt 0:00:46] C11: French: Classical System: 4 e5 and 4 Bg5 dxe4.} Qb6 {[%emt 0:16:26]} ({Don't take} 10... d4 11. Nxd4 Nxd4 12. Ne4 $16) 11. Bf2 {[%emt 0:00:54]} Bxf2+ {[%emt 0:03:42]} (11... O-O {is more complex.} 12. a3 Bb7 13. O-O h6) 12. Qxf2 {[%emt 0:00:06] The position is equal.} Qxf2+ {[%emt 0:01:08]} 13. Kxf2 {[%emt 0:00:05]} Nc5 {[%emt 0:01:13]} 14. Ne2 {[%emt 0:08:01]} O-O {[%emt 0:01:55]} 15. Ned4 {[%emt 0:02:38]} (15. Ke3 {keeps more tension.} Bd7 16. a3 h5 17. Ned4) 15... Nxd4 {[%emt 0:09:22]} 16. Nxd4 {[%emt 0:00:05]} f6 {[%emt 0:00:41] aiming for ...fxe5.} 17. Ke3 {[%emt 0:05:23]} Bd7 {[%emt 0:00:56] [#]} 18. g4 $146 {[%emt 0:03:36][%cal Bg2g4,Bg4g5][%mdl 32]} ({Predecessor:} 18. Rhf1 b4 19. Rae1 f5 20. Rg1 Kf7 21. g4 g6 22. h4 Na4 23. b3 Nc3 24. h5 {1-0 (40) Andronescu,M (2124)-Iustin,S (1980) Mamaia 2019}) 18... Rae8 {[%emt 0:22:15]} 19. h4 {[%emt 0:06:28]} Bc8 {[%emt 0:00:30]} 20. Rhf1 {[%emt 0:07:54]} Bb7 {[%emt 0:05:10]} 21. g5 {[%emt 0:04:22]} fxe5 {[%emt 0:01:51]} 22. fxe5 {[%emt 0:00:05]} Rxf1 {[%emt 0:00:07]} 23. Rxf1 {[%emt 0:00:09]} Nd7 {[%emt 0:03:18]} 24. Nf3 {[%emt 0:08:13] White is much more active.} Rf8 {[%emt 0:00:09]} 25. h5 {[%emt 0:01:45]} Bc8 {[%emt 0:08:56]} 26. c3 {[%emt 0:06:30]} Bb7 {[%emt 0:00:26]} 27. Nd4 {[%emt 0:11:22]} ({White should try} 27. b3 $16) 27... Rxf1 $14 {[%emt 0:00:53]} 28. Bxf1 {[%emt 0:00:04][%mdl 4096] Endgame KBN-KBN} Kf7 {[%emt 0:07:21] Loses the game.} (28... Nxe5 $14 29. Nxe6 Nc4+ 30. Kd4 Nxb2) 29. Bh3 $18 {[%emt 0:02:54]} Nf8 {[%emt 0:10:31] [#]} 30. Nb3 $1 {[%emt 0:01:53]} Ke7 {[%emt 0:01:40]} ({Not} 30... Nd7 31. Nd4 Nf8 32. Nb3 $16) 31. Kd4 {[%emt 0:01:51]} Kd8 {[%emt 0:00:31]} 32. Nc5 {[%emt 0:02:17][%csl LRb7,LRe6]} Bc8 {[%emt 0:00:06] [#]} 33. b4 $1 {[%emt 0:03:46]} Kc7 {[%emt 0:00:18]} 34. a4 {[%emt 0:03:59]} bxa4 {[%emt 0:01:02]} 35. Nxa4 {[%emt 0:00:06]} Kc6 {[%emt 0:00:27]} 36. Nc5 {[%emt 0:01:45]} Kb6 {[%emt 0:00:45]} 37. h6 {[%emt 0:02:25]} g6 {[%emt 0:01:08]} (37... gxh6 38. gxh6 a5 39. bxa5+ Kxa5) 38. Bf1 {[%emt 0:01:03]} Ka7 {[%emt 0:02:24]} 39. Bd3 {[%emt 0:01:53]} Kb6 {[%emt 0:00:08]} 40. Na4+ {[%emt 0:02:04]} Kc6 {[%emt 0:00:37]} 41. Nb2 {[%emt 0:30:46]} Kc7 $2 {[%emt 0:06:52]} (41... Kb6 42. Na4+ Kc7) 42. Nd1 {[%emt 0:00:00]} Kb6 {[%emt 0:00:41]} 43. Nf2 {[%emt 0:00:00]} Bd7 {[%emt 0:00:31]} 44. Ng4 {[%emt 0:00:00]} Bb5 {[%emt 0:00:14]} 45. Bc2 {[%emt 0:00:00] Hoping for Nf6.} Bf1 {[%emt 0:04:14]} 46. Nf6 {[%emt 0:00:00]} Bg2 {[%emt 0:14:57]} 47. Ba4 {[%emt 0:00:00]} Kc7 {[%emt 0:01:22]} 48. Be8 {[%emt 0:00:00]} Bh1 {[%emt 0:01:05]} 49. Bf7 {[%emt 0:00:00]} Kd8 {[%emt 0:03:11]} 50. Bg8 {[%emt 0:00:00]} Ke7 {[%emt 0:00:12]} 51. Bxh7 {[%emt 0:00:00]} Nxh7 {[%emt 0:00:23]} 52. Nxh7 {[%emt 0:00:00] KB-KN. White mates.} Bf3 {[%emt 0:00:53]} 53. Nf6 {[%emt 0:00:00]} Kf7 {[%emt 0:00:08]} 54. Kc5 {[%emt 0:00:00]} Be2 {[%emt 0:00:08]} 55. Kb6 {[%emt 0:00:00]} Bb5 {[%emt 0:00:13]} 56. Kc7 {[%emt 0:00:00]} Be2 {[%emt 0:00:57]} 57. Nd7 {[%emt 0:00:00]} Bb5 {[%emt 0:00:45]} 58. Nc5 {[%emt 0:00:00]} Bc4 {[%emt 0:00:13]} 59. Kb6 {[%emt 0:00:00] Weighted Error Value: White=0.11 (very precise) /Black=0.36} 1-0

[Event "26th Womens ECCC 2022"]
[Site "Mayrhofen"]
[Date "2022.10.06"]
[Round "4.26"]
[White "Klek, Hanna Marie"]
[Black "Blagojevic, Tijana"]
[Result "1-0"]
[ECO "C50"]
[WhiteElo "2301"]
[BlackElo "2266"]
[Annotator "TA"]
[PlyCount "105"]
[EventDate "2022.10.03"]
[EventType "team-tourn"]
[EventCountry "AUT"]
[SourceTitle "playchess.com"]
[Source "ChessBase"]
[SourceQuality "1"]
[TimeControl "40/5400+30:1800+30"]

{[%evp 9,105,14,16,0,0,0,0,0,0,0,0,0,12,-24,39,26,19,-14,70,51,73,76,72,22,29,29,32,32,67,53,51,0,0,-59,-43,-44,100,96,126,98,92,17,14,13,22,28,18,19,54,20,207,199,201,203,197,197,191,114,109,78,84,53,54,31,36,43,78,38,82,85,79,79,70,81,142,140,235,219,503,503,482,460,620,607,569,554,561,531,474,355,796,760,3724,2606,5601,5479,4133,1850]} 1. e4 {[%emt 0:00:03]} e5 {[%emt 0:00:06]} 2. Nf3 {[%emt 0:00:04]} Nc6 {[%emt 0:00:05]} 3. Bc4 {[%emt 0:00:04]} d6 {[%emt 0:00:04]} 4. d4 {[%emt 0:00:38]} Nf6 {[%emt 0:00:34]} 5. Ng5 {[%emt 0:06:09]} d5 {[%emt 0:01:19]} (5... Nxd4 $2 6. Nxf7 (6. Bxf7+ Ke7 $14) 6... Qe7 7. Nxh8 $18) 6. dxe5 {[%emt 0:06:17] C56: Two Knights: 4 d4 exd4 5 0-0 Nxe4.} (6. exd5 {looks sharper.} Nxd4 7. c3 Nf5 8. d6) 6... dxc4 {[%emt 0:04:43]} 7. Qxd8+ {[%emt 0:00:08]} Nxd8 {[%emt 0:00:24]} 8. exf6 {[%emt 0:00:05] The position is equal.} gxf6 {[%emt 0:01:09]} 9. Nf3 {[%emt 0:00:08] [#]} Nc6 $146 {[%emt 0:02:59]} ({Predecessor:} 9... Rg8 10. O-O Bh3 11. Ne1 Bc5 12. Be3 Ne6 13. Kh1 Bg4 14. Nc3 b6 15. Nd5 Be7 16. f3 Bh5 17. Rd1 Bd8 18. g4 Bg6 19. h4 {1-0 (19) McMillan,L-Junkeer,J IECG email 2002}) 10. Bf4 {[%emt 0:03:37]} Nb4 {[%emt 0:00:56]} 11. Kd1 {[%emt 0:05:37]} Bc5 {[%emt 0:17:05]} ({But not} 11... Bg4 12. Bxc7 Rg8 13. Nc3 $14) (11... Rg8 $11 12. Nh4 (12. a3 Nc6 $11) 12... Be6) 12. Bxc7 {[%emt 0:02:10]} Bxf2 {[%emt 0:00:17]} 13. Bd6 {[%emt 0:02:02]} Na6 {[%emt 0:03:57]} ({Better is} 13... Nc6 $11) 14. Nc3 {[%emt 0:02:37] Strongly threatening Nd5.} Be6 {[%emt 0:03:12]} 15. Ke2 {[%emt 0:03:23]} Bb6 {[%emt 0:00:34]} 16. Rad1 {[%emt 0:06:34] White is more active.} ({Stronger than} 16. Nd5 Bxd5 17. exd5 O-O-O $17) (16. a4 $16) 16... Rg8 $11 {[%emt 0:00:40]} 17. g3 {[%emt 0:02:46]} O-O-O {[%emt 0:12:34]} 18. Be7 $36 {[%emt 0:06:12][%csl LRd8,LRf6][%mdl 2048] White has the initiative.} Rxd1 {[%emt 0:01:09]} 19. Rxd1 {[%emt 0:00:15]} f5 {[%emt 0:01:18]} 20. e5 {[%emt 0:10:27]} ({White should play} 20. Ng5 $14) 20... f4 {[%emt 0:03:28]} 21. Bg5 {[%emt 0:06:37]} (21. Ne4 $11) 21... fxg3 $15 {[%emt 0:02:35]} 22. hxg3 {[%emt 0:00:07]} f6 {[%emt 0:07:22]} (22... Nb4 $15 {stays ahead.}) 23. exf6 $16 {[%emt 0:05:09] aiming for Ne4.} Bg4 {[%emt 0:00:19]} 24. f7 {[%emt 0:02:59]} Rf8 {[%emt 0:00:55] [#]} 25. Ne4 {[%emt 0:01:29]} (25. Nb5 $1 $16 {[%cal Rb5d6] Black must now prevent Nd6+.} Bc5 26. Rd5) 25... Bc7 $11 {[%emt 0:09:35] A strong pair of Bishops.} 26. Rd4 {[%emt 0:05:01]} Rxf7 {[%emt 0:02:42]} 27. Nd6+ {[%emt 0:01:04]} Bxd6 {[%emt 0:00:05]} 28. Rxg4 {[%emt 0:00:06]} Rc7 {[%emt 0:01:12]} 29. Bf6 {[%emt 0:01:09]} Nb4 $2 {[%emt 0:03:06] [#]} (29... b5 $11) 30. Rg8+ $1 $18 {[%emt 0:01:40]} Kd7 {[%emt 0:00:04]} 31. Nd4 {[%emt 0:00:13][%csl Gf6][%cal Rg8d8]} Rc8 {[%emt 0:07:17] Against Rd8+} 32. Rg7+ {[%emt 0:00:16]} Ke8 {[%emt 0:00:02]} 33. Rxh7 {[%emt 0:04:10]} (33. Rxb7 $18 Nd5 34. Nf5 Bxg3 35. Nxg3 Nxf6 36. Nf5 (36. Rxa7 Rb8 $16)) 33... Rc7 $16 {[%emt 0:02:11]} 34. Rxc7 {[%emt 0:01:31]} Bxc7 {[%emt 0:00:02][%mdl 4096] Endgame KBN-KBN} 35. a3 {[%emt 0:02:25]} Nd5 {[%emt 0:02:07]} 36. Bh4 {[%emt 0:00:18]} Be5 {[%emt 0:00:41]} 37. c3 {[%emt 0:00:32]} Nb6 {[%emt 0:01:18]} 38. Kd2 {[%emt 0:00:52]} (38. Nf3 $5 {[%cal Rf3e5]} Bc7 39. Kd1 $14) 38... Na4 {[%emt 0:03:06]} 39. Kc2 {[%emt 0:00:28]} Nc5 {[%emt 0:00:51]} 40. Nf3 {[%emt 0:01:30]} Bd6 {[%emt 0:00:31]} 41. g4 {[%emt 0:30:54]} a5 {[%emt 0:33:58]} (41... a6 $142) 42. Bf2 {[%emt 0:12:05] Hoping for Bxc5.} Nd7 {[%emt 0:02:42]} (42... Nd3 $16) 43. a4 $18 {[%emt 0:00:00] Nd2 is the strong threat.} Bf4 {[%emt 0:00:00]} (43... Nf6 {was called for.} 44. Nd2 Nxg4) 44. Bd4 {[%emt 0:00:00]} Kf7 {[%emt 0:00:00]} 45. Nd2 {[%emt 0:00:00]} Kg6 {[%emt 0:00:00]} 46. Nxc4 {[%emt 0:00:00]} Bc7 {[%emt 0:00:00]} 47. Be3 {[%emt 0:00:00]} Nf6 {[%emt 0:00:00]} 48. g5 {[%emt 0:00:00]} Nd5 {[%emt 0:00:00]} 49. Kd3 {[%emt 0:00:00]} Bd8 $2 {[%emt 0:00:00]} (49... Kf5 50. Kd4 Ne7) 50. Ke4 {[%emt 0:00:00] White is clearly winning.} Nxe3 {[%emt 0:00:00]} 51. Kxe3 {[%emt 0:00:00]} Bxg5+ {[%emt 0:00:00]} 52. Ke4 {[%emt 0:00:00]} Bd8 {[%emt 0:00:00]} 53. Kd5 {[%emt 0:00:00] Weighted Error Value: White=0.18 (very precise) /Black=0.40} 1-0

[Event "26th Womens ECCC 2022"]
[Site "Mayrhofen"]
[Date "2022.10.06"]
[Round "4.27"]
[White "Gajcin, Marina"]
[Black "Navrotescu, Andreea"]
[Result "1-0"]
[ECO "B40"]
[WhiteElo "2228"]
[BlackElo "2287"]
[Annotator "TA"]
[PlyCount "123"]
[EventDate "2022.10.03"]
[EventType "team-tourn"]
[EventCountry "AUT"]
[SourceTitle "playchess.com"]
[Source "ChessBase"]
[SourceQuality "1"]
[TimeControl "40/5400+30:1800+30"]

{[%evp 12,123,41,23,22,39,35,28,30,39,50,-1,29,31,37,19,26,29,32,-14,-4,-4,-2,-33,-24,-32,0,-16,-19,-27,-17,-43,-17,-17,-14,-56,-51,-70,-66,-66,-75,-93,-51,-79,-43,-47,-45,-58,-31,-33,0,0,11,-22,-28,-69,-44,-47,0,-104,-49,-117,-117,-117,-117,-175,-137,-126,-120,-123,-105,-141,-95,-130,-32,-46,-38,-88,-85,-100,-107,-218,-15,-16,-14,-75,0,-153,0,0,0,0,0,0,0,0,0,0,0,0,264,88,202,74,108,89,83,64,811,811,811,747,29998,29999]} 1. e4 {[%emt 0:00:03]} c5 {[%emt 0:00:04]} 2. Nf3 {[%emt 0:00:05]} e6 {[%emt 0:00:04]} 3. d4 {[%emt 0:00:28]} cxd4 {[%emt 0:00:05]} 4. Nxd4 {[%emt 0:00:03]} Nf6 {[%emt 0:00:06]} 5. Nc3 {[%emt 0:00:05]} Nc6 {[%emt 0:00:04]} 6. Ndb5 {[%emt 0:00:53]} Bc5 {[%emt 0:01:00]} 7. Bf4 {[%emt 0:07:44] 7.Bf4 is better than 7.Nd6+.} O-O {[%emt 0:01:34] B45: Sicilian Four Knights.} 8. Bc7 {[%emt 0:05:48]} Qe7 {[%emt 0:00:07] aiming for ...d5.} 9. Bd6 $1 {[%emt 0:01:30]} Bxd6 {[%emt 0:00:09] White has an edge.} 10. Qxd6 {[%emt 0:03:15]} Qd8 {[%emt 0:00:14]} 11. Qd2 {[%emt 0:11:11]} (11. Nc7 $14 Rb8 12. Be2) 11... a6 {[%emt 0:03:28]} 12. Nd6 {[%emt 0:04:35]} b5 {[%emt 0:00:41]} 13. a3 {[%emt 0:04:47]} Qb6 {[%emt 0:03:30]} 14. Be2 {[%emt 0:04:57] [#]} Bb7 $146 {[%emt 0:06:37]} ({Predecessor:} 14... Ne8 15. Rd1 Nxd6 16. Qxd6 Bb7 17. O-O Rad8 18. Kh1 b4 19. Na4 Qa5 20. Nc5 Bc8 21. Rd3 f5 22. Bf3 Rf7 23. exf5 Rxf5 {½-½ (55) Perske,T (1956)-Kickert,G (1925) Xanten 2011}) 15. Nxb7 {[%emt 0:06:40]} (15. O-O-O $14 {might be stronger.}) 15... Qxb7 $11 {[%emt 0:00:11]} 16. O-O {[%emt 0:03:30]} Rfd8 {[%emt 0:04:56]} 17. Bd3 {[%emt 0:17:40]} d6 {[%emt 0:07:50]} 18. Kh1 {[%emt 0:03:57]} e5 {[%emt 0:05:09]} 19. Nd5 {[%emt 0:01:03]} Nxd5 {[%emt 0:02:07]} 20. exd5 {[%emt 0:01:01]} Ne7 {[%emt 0:00:07]} 21. Rfd1 {[%emt 0:02:43]} Rac8 {[%emt 0:02:06]} 22. c3 {[%emt 0:02:22]} (22. a4 {keeps more tension.} Qxd5 23. axb5 axb5 24. Ra7) 22... Rc5 {[%emt 0:06:20]} (22... Qxd5 $2 23. Bxh7+ $1 {[%mdl 512]} Kxh7 24. Qc2+ Kg8 25. Rxd5 Nxd5 26. Qf5 $16) (22... Nxd5 $2 23. Be4 $18) 23. Be4 {[%emt 0:02:17]} f5 {[%emt 0:01:20]} 24. Bc2 {[%emt 0:00:12]} Kh8 {[%emt 0:01:39][%cal Rc5d5]} 25. Qg5 {[%emt 0:02:05]} Rf8 {[%emt 0:01:15][%cal Bd8f8,Bf8f6,Bf6g6][%mdl 32]} 26. Rd3 {[%emt 0:00:33]} Rf6 {[%emt 0:03:44]} (26... Nxd5 $6 27. Rad1 $11) 27. Rad1 {[%emt 0:02:12]} Rg6 {[%emt 0:03:03]} (27... Nxd5 $2 28. Bb3 $18) 28. Qd2 {[%emt 0:00:59]} Rc4 {[%emt 0:02:02]} 29. Rg3 {[%emt 0:00:12]} Rxg3 {[%emt 0:02:24]} (29... Rf6 {seems wilder.} 30. Qg5 Rf7 31. Rf3 Qc8) 30. hxg3 {[%emt 0:00:06]} Rg4 {[%emt 0:02:14]} 31. Kg1 {[%emt 0:00:56]} Qb6 {[%emt 0:01:51]} 32. Qd3 {[%emt 0:02:48]} g6 {[%emt 0:07:40]} 33. Kf1 {[%emt 0:02:15]} Ng8 {[%emt 0:05:22]} (33... Kg7 {is more complex.} 34. Qd2 Rc4 35. Qg5 Qa7) 34. Qd2 {[%emt 0:01:36]} Kg7 {[%emt 0:00:45]} (34... Rc4 $15 {is more appropriate.}) 35. Ra1 {[%emt 0:04:16]} (35. Bd3 $1 $11) 35... Nf6 {[%emt 0:01:30]} (35... Rc4 $1 $17) 36. Bd1 {[%emt 0:00:39]} ({White should play} 36. b3 $15) 36... Rc4 $1 $17 {[%emt 0:02:37]} 37. Bb3 {[%emt 0:01:12]} Rc7 {[%emt 0:01:09]} 38. a4 {[%emt 0:00:44]} (38. Re1 $17) 38... Ne4 {[%emt 0:01:05]} 39. Qe2 {[%emt 0:00:23]} Rf7 {[%emt 0:02:23][%cal Of5f4] Threatens to win with ...f4!} 40. Bc2 {[%emt 0:01:45]} Nf6 $1 {[%emt 0:03:39]} 41. Rd1 {[%emt 0:13:24]} Nh5 {[%emt 0:01:22]} ({Better is} 41... Qc5 42. axb5 axb5) 42. Rd3 {[%emt 0:09:29]} e4 {[%emt 0:03:23]} (42... Rb7 $17 {White must now prevent ...bxa4.} 43. axb5 axb5) 43. Rd4 $15 {[%emt 0:00:22]} Qc5 {[%emt 0:03:23]} 44. Qe3 {[%emt 0:01:16]} (44. Ke1 $15) 44... Nf6 $17 {[%emt 0:02:14]} 45. b4 {[%emt 0:01:18]} Qc8 {[%emt 0:00:56]} 46. c4 {[%emt 0:00:25]} (46. Bd1 $17) 46... bxc4 $2 {[%emt 0:01:27]} (46... Rc7 $1 $19 {[%cal Rc7c4]} 47. c5 dxc5 48. bxc5 Rxc5) 47. Qc3 $11 {[%emt 0:00:11]} Rc7 {[%emt 0:00:17]} 48. Bd1 {[%emt 0:02:12]} (48. g4 $1 $11 {keeps the balance.}) 48... g5 {[%emt 0:06:59]} (48... Qe8 $17 {...Qe5 is the strong threat.} 49. Rxc4 Rxc4 50. Qxc4 Qe5 51. Qc7+ Kh6) 49. Be2 $2 {[%emt 0:00:23] [#]} (49. a5 $1 $11) 49... Kg6 $2 {[%emt 0:00:09]} (49... Qe8 $1 $17 50. Rxc4 Rxc4 51. Bxc4 Qxa4) 50. Rxc4 {[%emt 0:00:38]} Nxd5 {[%emt 0:00:59]} 51. Rxc7 {[%emt 0:01:35]} Qxc7 {[%emt 0:00:09][%mdl 4096] Endgame KQB-KQN} (51... Nxc3 $2 52. Rxc8 Nxa4 53. Rc6 $18) 52. Qd2 {[%emt 0:01:25]} Nc3 {[%emt 0:02:55]} 53. Bxa6 {[%emt 0:02:11]} Nxa4 {[%emt 0:00:07]} 54. Bb5 {[%emt 0:00:40] Prevents Qc6.} Nc3 {[%emt 0:08:28]} 55. Be8+ {[%emt 0:00:06][%mdl 64] Deflection} Kg7 $2 {[%emt 0:02:44][%mdl 8192]} (55... Kf6 $11 {and Black has nothing to worry.} 56. Kg1 Ke7) 56. Qd4+ $2 {[%emt 0:00:09]} (56. Qxg5+ $18 {and the rest is easy.} Kf8 57. Bh5 Qc4+ 58. Kg1) 56... Kf8 {[%emt 0:02:53] [#]} (56... Kg8 $16) 57. Qh8+ {[%emt 0:01:15]} ({But not} 57. Qf6+ $2 Kxe8 58. Qxg5 (58. Qh8+ $2 Kd7 $19) 58... Qf7 $19) (57. Bh5 $1 $18 {White threatens Qh8+ and mate.} Kg8 58. Qf6) 57... Ke7 $16 {[%emt 0:00:01]} 58. Qxh7+ {[%emt 0:00:16]} Kd8 {[%emt 0:00:01]} 59. Qg8 {[%emt 0:00:46] White wants to mate with Bg6+.} Kc8 $2 {[%emt 0:08:13][%mdl 8192]} (59... Ke7 $14) 60. Bc6+ $18 {[%emt 0:00:30]} Qd8 {[%emt 0:00:04]} 61. Qc4 {[%emt 0:00:24]} Nd1 {[%emt 0:03:47]} 62. Qa6+ {[%emt 0:00:15] Never resign too early!  Weighted Error Value: White=0.30/Black=0.44} 1-0